fUSD/lending_fUSD_20240616
["ID","MTS","AMOUNT","RATE_DAILY","PERIOD"]
[329622178,1718513514441,-690.0,0.00022723,15]
[329622179,1718513514452,-283.0,0.00022723,15]
[329622180,1718513514464,-1468.61436009,0.00022723,2]
[329622181,1718513514488,-1111.15560901,0.00022723,2]
[329622182,1718513514505,-198.9813127,0.00022723,2]
[329622183,1718513514517,-5226.68580251,0.00022723,2]
[329622184,1718513514541,-5573.88035066,0.00022723,2]
[329622185,1718513514558,-581.0,0.00022723,2]
[329622186,1718513515294,-531.0,0.00022723,2]
[329622187,1718513515312,-1926.36683321,0.00022723,2]
[329622188,1718513515327,-566.55840325,0.00022723,2]
[329622189,1718513515356,-9915.77401847,0.00022723,2]
[329622190,1718513515374,-5874.2660513,0.00022723,2]
[329622191,1718513515387,-5594.08752555,0.00022723,2]
[329622192,1718513515731,-2006.18832889,0.00022723,2]
[329622195,1718513754840,452.41,0.000251,30]
[329622203,1718514443371,-913.88455203,0.00015399,2]
[329622204,1718514443402,-8428.94573219,0.00015498,2]
[329622205,1718514443433,-260.0,0.000155,2]
[329622206,1718514443465,-260.0,0.00016,2]
[329622207,1718514443505,-260.0,0.0001651,2]
[329622208,1718514443561,-260.0,0.0001702,2]
[329622209,1718514443590,-260.0,0.0001752,2]
[329622210,1718514443620,-260.0,0.0001803,2]
[329622211,1718514443649,-260.0,0.0001853,2]
[329622212,1718514443681,-670.73,0.00018917,2]
[329622213,1718514443709,-260.0,0.0001904,2]
[329622214,1718514443741,-1000.0,0.00019309,2]
[329622215,1718514443778,-250.0,0.00019489,2]
[329622216,1718514443817,-260.0,0.0001954,2]
[329622217,1718514443873,-260.0,0.0002005,2]
[329622218,1718514443911,-260.0,0.0002055,2]
[329622219,1718514443968,-256.81,0.00020843,2]
[329622220,1718514444012,-150.347,0.00020982,2]
[329622221,1718514444073,-184.74,0.00020987,2]
[329622222,1718514444118,-1250.0,0.00021,2]
[329622223,1718514444167,-260.0,0.0002106,2]
[329622224,1718514444201,-522.92042804,0.00021112,2]
[329622225,1718514444244,-295.373,0.00021113,2]
[329622226,1718514444290,-1822.0,0.00021113,2]
[329622227,1718514444336,-359.0,0.00021113,2]
[329622228,1718514444372,-503.19,0.00021113,2]
[329622229,1718514444407,-4264.95764136,0.00021113,2]
[329622251,1718514633600,-781.03258899,0.00015835,2]
[329622252,1718514633785,-52.80010551,0.00015835,2]
[329622253,1718514633797,-839.50023595,0.00021,2]
[329622254,1718514633811,-9963.91,0.00021,2]
[329622255,1718514633844,-6900.71622752,0.00021,2]
[329622256,1718514633861,-310.28377248,0.00021112,2]
[329622257,1718514635076,-854.82014811,0.00021112,2]
[329622258,1718514635108,-4611.48607925,0.00021112,2]
[329622259,1718514635136,-498.756,0.00021113,2]
[329622260,1718514635151,-442.0,0.00021113,2]
[329622261,1718514635162,-335.928,0.00021113,2]
[329622262,1718514635194,-1652.0,0.00021113,2]
[329622263,1718514635206,-447.0,0.00021113,2]
[329622264,1718514635221,-1304.0,0.00021113,2]
[329622265,1718514635255,-1703.132,0.00021113,2]
[329622266,1718514635274,-3196.0,0.00021113,2]
[329622267,1718514635290,-20286.29635735,0.00021113,2]
[329622268,1718514635305,-447.56672219,0.00021113,2]
[329622269,1718514635323,-1048.34273564,0.00021113,2]
[329622270,1718514635348,-670.73,0.00021181,2]
[329622271,1718514635359,-260.0,0.0002156,2]
[329622272,1718514635371,-151.0,0.00021681,2]
[329622273,1718514635386,-2500.0,0.00021717,2]
[329622275,1718514635401,-1000.0,0.00021722,2]
[329622277,1718514635412,-943.17257402,0.00021815,2]
[329622278,1718514635436,-754.3141,0.00021815,2]
[329622279,1718514635453,-500.0,0.00021816,2]
[329622280,1718514635475,-489.18462675,0.00021816,2]
[329622281,1718514635504,-17774.2364,0.00021817,2]
[329622282,1718514635518,-1000.0,0.00021817,2]
[329622283,1718514635531,-1528.7326,0.00021817,2]
[329622284,1718514635549,-100000.0,0.00021817,2]
[329622285,1718514635560,-7500.0,0.00021817,2]
[329622286,1718514635572,-3985.172,0.00021824,2]
[329622287,1718514635583,-290.0,0.00021824,2]
[329622288,1718514635598,-1195.0,0.00021824,2]
[329622289,1718514635632,-38047.0,0.00021824,2]
[329622290,1718514635644,-1094.01,0.00021824,2]
[329622291,1718514635669,-2495.99925591,0.00021915,2]
[329622292,1718514635683,-5410.58699416,0.00021915,2]
[329622293,1718514635707,-2915.1101,0.00021915,2]
[329622294,1718514635723,-13864.10471061,0.00021915,2]
[329622295,1718514635735,-7344.31581828,0.00021916,5]
[329622296,1718514635761,-336.1038979,0.00021916,2]
[329622297,1718514635772,-213.92612113,0.00021916,2]
[329622298,1718514635785,-93992.57072965,0.00021917,2]
[329622299,1718514635811,-513.62383406,0.00021917,2]
[329622300,1718514635839,-506.41080779,0.00021917,2]
[329622301,1718514635851,-205.00894014,0.00021917,2]
[329622302,1718514635864,-500.0,0.00021917,2]
[329622303,1718514635877,-500.0,0.00021917,2]
[329622304,1718514635889,-276.42838458,0.00021917,2]
[329622305,1718514635905,-500.0,0.00021917,2]
[329622306,1718514635920,-503.51029031,0.00021917,2]
[329622307,1718514635944,-508.13954162,0.00021917,2]
[329622308,1718514635954,-512.13724005,0.00021917,2]
[329622309,1718514635970,-500.0,0.00021917,2]
[329622310,1718514635990,-588.10578268,0.00021917,2]
[329622311,1718514636008,-500.0,0.00021917,2]
[329622312,1718514636019,-500.0,0.00021917,2]
[329622313,1718514636031,-500.0,0.00021917,2]
[329622314,1718514636062,-500.0,0.00021917,2]
[329622315,1718514636101,-500.0,0.00021917,2]
[329622316,1718514636113,-500.0,0.00021917,2]
[329622317,1718514636125,-500.0,0.00021917,2]
[329622318,1718514636137,-500.0,0.00021917,2]
[329622319,1718514636151,-229.69794063,0.00021917,2]
[329622320,1718514636168,-500.0,0.00021917,2]
[329622321,1718514636179,-500.0,0.00021917,2]
[329622322,1718514636196,-500.0,0.00021917,2]
[329622323,1718514636207,-500.0,0.00021917,2]
[329622324,1718514636219,-500.0,0.00021917,2]
[329622325,1718514636234,-500.0,0.00021917,2]
[329622326,1718514636252,-500.0,0.00021917,2]
[329622327,1718514636272,-500.0,0.00021917,2]
[329622328,1718514636298,-279.91177501,0.00021917,2]
[329622329,1718514636315,-500.0,0.00021917,2]
[329622330,1718514636337,-500.0,0.00021917,2]
[329622331,1718514636355,-500.0,0.00021917,2]
[329622332,1718514636391,-500.0,0.00021917,2]
[329622333,1718514636422,-535.16600402,0.00021917,2]
[329622334,1718514636437,-500.0,0.00021917,2]
[329622335,1718514636474,-500.0,0.00021917,2]
[329622336,1718514636492,-500.0,0.00021917,2]
[329622337,1718514636514,-500.0,0.00021917,2]
[329622338,1718514636529,-500.0,0.00021917,2]
[329622339,1718514636543,-583.1620513,0.00021917,2]
[329622340,1718514636573,-500.0,0.00021917,2]
[329622341,1718514636586,-500.0,0.00021917,2]
[329622342,1718514636602,-500.0,0.00021917,2]
[329622343,1718514636617,-500.0,0.00021917,2]
[329622344,1718514636629,-179.0656578,0.00021917,2]
[329622345,1718514636642,-500.0,0.00021917,2]
[329622346,1718514636655,-500.0,0.00021917,2]
[329622347,1718514636667,-500.0,0.00021917,2]
[329622348,1718514636680,-1006.68,0.00021917,2]
[329622349,1718514636696,-810.35,0.00021917,2]
[329622350,1718514636708,-500.0,0.00021917,2]
[329622351,1718514636726,-500.0,0.00021917,2]
[329622352,1718514636769,-500.0,0.00021917,2]
[329622353,1718514636791,-500.0,0.00021917,2]
[329622354,1718514636811,-620.90926375,0.00021917,2]
[329622355,1718514636849,-500.0,0.00021917,2]
[329622356,1718514636865,-500.0,0.00021917,2]
[329622357,1718514636919,-731.88,0.00021917,2]
[329622358,1718514636930,-500.0,0.00021917,2]
[329622359,1718514636943,-500.0,0.00021917,2]
[329622360,1718514636957,-500.0,0.00021917,2]
[329622361,1718514636968,-681.94,0.00021917,2]
[329622362,1718514636980,-627.82,0.00021917,2]
[329622363,1718514636993,-536.58,0.00021917,2]
[329622364,1718514637004,-500.0,0.00021917,2]
[329622365,1718514637017,-500.0,0.00021917,2]
[329622366,1718514637029,-500.0,0.00021917,2]
[329622367,1718514637042,-500.0,0.00021917,2]
[329622368,1718514637064,-500.0,0.00021917,2]
[329622369,1718514637084,-501.22106332,0.00021917,2]
[329622370,1718514637125,-500.0,0.00021917,2]
[329622371,1718514637136,-901.46,0.00021917,2]
[329622372,1718514637148,-500.0,0.00021917,2]
[329622373,1718514637160,-500.0,0.00021917,2]
[329622374,1718514637178,-2047.36,0.00021917,2]
[329622375,1718514637194,-507.23845751,0.00021917,2]
[329622376,1718514637209,-500.0,0.00021917,2]
[329622377,1718514637236,-500.0,0.00021917,2]
[329622378,1718514637249,-500.0,0.00021917,2]
[329622379,1718514637264,-500.0,0.00021917,2]
[329622380,1718514637277,-156.29919295,0.00021917,2]
[329622381,1718514637328,-500.0,0.00021917,2]
[329622382,1718514637353,-500.0,0.00021917,2]
[329622383,1718514637384,-500.0,0.00021917,2]
[329622384,1718514637395,-500.0,0.00021917,2]
[329622385,1718514637444,-500.0,0.00021917,2]
[329622386,1718514637480,-500.0,0.00021917,2]
[329622387,1718514637512,-500.0,0.00021917,2]
[329622388,1718514637523,-843.71,0.00021917,2]
[329622389,1718514637536,-500.0,0.00021917,2]
[329622390,1718514637556,-500.0,0.00021917,2]
[329622391,1718514637573,-500.0,0.00021917,2]
[329622392,1718514637584,-500.0,0.00021917,2]
[329622393,1718514637615,-500.0,0.00021917,2]
[329622394,1718514637628,-506.68524133,0.00021917,2]
[329622395,1718514637651,-500.0,0.00021917,2]
[329622396,1718514637663,-500.0,0.00021917,2]
[329622397,1718514637681,-500.0,0.00021917,2]
[329622398,1718514637693,-500.0,0.00021917,2]
[329622399,1718514637714,-253.37786055,0.00021917,2]
[329622400,1718514637728,-513.2,0.00021917,2]
[329622401,1718514637747,-500.0,0.00021917,2]
[329622402,1718514637758,-500.0,0.00021917,2]
[329622403,1718514637770,-502.63121629,0.00021917,2]
[329622404,1718514637783,-260.98169348,0.00021917,2]
[329622405,1718514637809,-500.0,0.00021917,2]
[329622406,1718514637824,-1056.47,0.00021917,2]
[329622407,1718514637841,-500.0,0.00021917,2]
[329622408,1718514637857,-500.0,0.00021917,2]
[329622409,1718514637868,-500.0,0.00021917,2]
[329622410,1718514637887,-500.0,0.00021917,2]
[329622411,1718514637903,-500.0,0.00021917,2]
[329622412,1718514637947,-906.02,0.00021917,2]
[329622413,1718514638022,-500.0,0.00021917,2]
[329622414,1718514638033,-500.0,0.00021917,2]
[329622415,1718514638053,-500.0,0.00021917,2]
[329622416,1718514638084,-601.32502715,0.00021917,2]
[329622417,1718514638095,-500.0,0.00021917,2]
[329622418,1718514638150,-640.54,0.00021917,2]
[329622419,1718514638188,-500.08,0.00021917,2]
[329622420,1718514638217,-500.0,0.00021917,2]
[329622421,1718514638232,-500.0,0.00021917,2]
[329622422,1718514638248,-500.0,0.00021917,2]
[329622423,1718514638259,-500.0,0.00021917,2]
[329622424,1718514638305,-500.0,0.00021917,2]
[329622425,1718514638316,-500.0,0.00021917,2]
[329622426,1718514638341,-500.0,0.00021917,2]
[329622427,1718514638402,-500.0,0.00021917,2]
[329622428,1718514638438,-500.0,0.00021917,2]
[329622429,1718514638486,-533.04935774,0.00021917,2]
[329622430,1718514638512,-573.37,0.00021917,2]
[329622431,1718514638543,-500.0,0.00021917,2]
[329622432,1718514638555,-500.0,0.00021917,2]
[329622433,1718514638567,-959.23,0.00021917,2]
[329622435,1718514638582,-500.0,0.00021917,2]
[329622436,1718514638610,-333.92012509,0.00021917,2]
[329622438,1718514638622,-500.0,0.00021917,2]
[329622439,1718514638652,-500.0,0.00021917,2]
[329622440,1718514638679,-631.23,0.00021917,2]
[329622441,1718514638745,-500.0,0.00021917,2]
[329622442,1718514638758,-500.0,0.00021917,2]
[329622443,1718514638769,-500.0,0.00021917,2]
[329622444,1718514638782,-500.0,0.00021917,2]
[329622445,1718514638793,-666.35,0.00021917,2]
[329622446,1718514638808,-183.78580151,0.00021917,2]
[329622448,1718514638819,-500.0,0.00021917,2]
[329622449,1718514638839,-500.0,0.00021917,2]
[329622450,1718514638850,-500.0,0.00021917,2]
[329622451,1718514638863,-500.0,0.00021917,2]
[329622452,1718514638887,-639.86,0.00021917,2]
[329622453,1718514638897,-500.0,0.00021917,2]
[329622454,1718514638908,-500.0,0.00021917,2]
[329622455,1718514638918,-500.0,0.00021917,2]
[329622456,1718514638932,-500.0,0.00021917,2]
[329622457,1718514638945,-664.8,0.00021917,2]
[329622458,1718514638956,-490.00033018,0.00021917,2]
[329622459,1718514638969,-500.0,0.00021917,2]
[329622460,1718514638981,-500.0,0.00021917,2]
[329622461,1718514639016,-604.42,0.00021917,2]
[329622462,1718514639026,-500.0,0.00021917,2]
[329622463,1718514639039,-500.0,0.00021917,2]
[329622464,1718514639052,-518.92324538,0.00021917,2]
[329622465,1718514639071,-500.0,0.00021917,2]
[329622466,1718514639092,-500.0,0.00021917,2]
[329622467,1718514639110,-1051.67,0.00021917,2]
[329622468,1718514639123,-961.09,0.00021917,2]
[329622469,1718514639138,-500.0,0.00021917,2]
[329622470,1718514639162,-500.0,0.00021917,2]
[329622471,1718514639206,-500.0,0.00021917,2]
[329622472,1718514639232,-500.0,0.00021917,2]
[329622473,1718514639252,-500.0,0.00021917,2]
[329622474,1718514639264,-500.0,0.00021917,2]
[329622475,1718514639288,-500.0,0.00021917,2]
[329622476,1718514639306,-500.0,0.00021917,2]
[329622477,1718514639325,-524.43715429,0.00021917,2]
[329622478,1718514639359,-1195.84,0.00021917,2]
[329622479,1718514639372,-500.0,0.00021917,2]
[329622480,1718514639410,-428.36570148,0.00021917,2]
[329622481,1718514639424,-500.0,0.00021917,2]
[329622482,1718514639439,-500.0,0.00021917,2]
[329622483,1718514639471,-500.0,0.00021917,2]
[329622484,1718514639504,-500.0,0.00021917,2]
[329622485,1718514639530,-500.0,0.00021917,2]
[329622486,1718514639547,-500.0,0.00021917,2]
[329622487,1718514639567,-770.75,0.00021917,2]
[329622488,1718514639584,-500.0,0.00021917,2]
[329622489,1718514639652,-500.0,0.00021917,2]
[329622490,1718514639667,-500.0,0.00021917,2]
[329622491,1718514639682,-893.17,0.00021917,2]
[329622492,1718514639700,-500.0,0.00021917,2]
[329622493,1718514639713,-500.0,0.00021917,2]
[329622494,1718514639728,-500.0,0.00021917,2]
[329622495,1718514639742,-550.31256958,0.00021917,2]
[329622496,1718514639773,-500.0,0.00021917,2]
[329622497,1718514639787,-500.0,0.00021917,2]
[329622498,1718514639808,-886.11,0.00021917,2]
[329622499,1718514639830,-500.0,0.00021917,2]
[329622500,1718514639856,-618.77,0.00021917,2]
[329622501,1718514639902,-500.0,0.00021917,2]
[329622502,1718514639935,-500.0,0.00021917,2]
[329622503,1718514639989,-500.0,0.00021917,2]
[329622504,1718514640001,-500.0,0.00021917,2]
[329622505,1718514640044,-500.0,0.00021917,2]
[329622506,1718514640063,-500.0,0.00021917,2]
[329622507,1718514640092,-985.78,0.00021917,2]
[329622508,1718514640131,-238.78927293,0.00021917,2]
[329622509,1718514640175,-500.0,0.00021917,2]
[329622510,1718514640193,-500.0,0.00021917,2]
[329622511,1718514640228,-500.0,0.00021917,2]
[329622512,1718514640245,-835.26,0.00021917,2]
[329622513,1718514640281,-513.36,0.00021917,2]
[329622514,1718514640340,-500.0,0.00021917,2]
[329622515,1718514640383,-500.0,0.00021917,2]
[329622516,1718514640397,-500.0,0.00021917,2]
[329622517,1718514640410,-500.0,0.00021917,2]
[329622518,1718514640436,-500.0,0.00021917,2]
[329622519,1718514640496,-501.85,0.00021917,2]
[329622520,1718514640513,-500.0,0.00021917,2]
[329622521,1718514640534,-500.0,0.00021917,2]
[329622522,1718514640547,-500.0,0.00021917,2]
[329622523,1718514640562,-989.9,0.00021917,2]
[329622524,1718514640585,-500.0,0.00021917,2]
[329622525,1718514640612,-505.09095979,0.00021917,2]
[329622526,1718514640624,-501.8857419,0.00021917,2]
[329622527,1718514640645,-500.0,0.00021917,2]
[329622528,1718514640669,-499.87816939,0.00021917,2]
[329622529,1718514640679,-500.0,0.00021917,2]
[329622530,1718514640724,-500.0,0.00021917,2]
[329622531,1718514640735,-500.0,0.00021917,2]
[329622532,1718514640747,-572.39,0.00021917,2]
[329622533,1718514640759,-503.79866049,0.00021917,2]
[329622534,1718514640772,-500.0,0.00021917,2]
[329622535,1718514640791,-502.13216546,0.00021917,2]
[329622536,1718514640814,-503.96051188,0.00021917,2]
[329622537,1718514640837,-500.0,0.00021917,2]
[329622538,1718514640848,-634.14,0.00021917,2]
[329622539,1718514640863,-500.0,0.00021917,2]
[329622540,1718514640876,-500.0,0.00021917,2]
[329622541,1718514640892,-500.0,0.00021917,2]
[329622542,1718514640903,-500.0,0.00021917,2]
[329622543,1718514640928,-500.0,0.00021917,2]
[329622544,1718514640981,-596.7300565,0.00021917,2]
[329622545,1718514640997,-500.0,0.00021917,2]
[329622546,1718514641281,-508.55,0.00021917,2]
[329622547,1718514641330,-500.0,0.00021917,2]
[329622548,1718514641380,-578.78,0.00021917,2]
[329622549,1718514641399,-500.0,0.00021917,2]
[329622550,1718514641412,-500.0,0.00021917,2]
[329622551,1718514641429,-500.0,0.00021917,2]
[329622552,1718514641442,-500.0,0.00021917,2]
[329622553,1718514641460,-500.0,0.00021917,2]
[329622554,1718514641513,-623.1,0.00021917,2]
[329622555,1718514641541,-500.0,0.00021917,2]
[329622556,1718514641560,-500.0,0.00021917,2]
[329622557,1718514641573,-500.0,0.00021917,2]
[329622558,1718514641584,-500.0,0.00021917,2]
[329622559,1718514641598,-500.0,0.00021917,2]
[329622560,1718514641613,-500.0,0.00021917,2]
[329622561,1718514641628,-558.36,0.00021917,2]
[329622562,1718514641645,-500.0,0.00021917,2]
[329622563,1718514641660,-692.22,0.00021917,2]
[329622564,1718514641673,-500.0,0.00021917,2]
[329622565,1718514641696,-500.0,0.00021917,2]
[329622566,1718514641726,-32.15566183,0.00021917,2]
[329622567,1718514642161,-467.84433817,0.00021917,2]
[329622568,1718514642180,-500.0,0.00021917,2]
[329622569,1718514642199,-500.0,0.00021917,2]
[329622570,1718514642216,-679.49,0.00021917,2]
[329622571,1718514642229,-500.0,0.00021917,2]
[329622572,1718514642302,-500.0,0.00021917,2]
[329622573,1718514642329,-546.36,0.00021917,2]
[329622574,1718514642340,-500.0,0.00021917,2]
[329622575,1718514642354,-500.0,0.00021917,2]
[329622576,1718514642404,-500.0,0.00021917,2]
[329622577,1718514642421,-500.0,0.00021917,2]
[329622578,1718514642444,-500.0,0.00021917,2]
[329622579,1718514642459,-500.0,0.00021917,2]
[329622580,1718514642471,-500.0,0.00021917,2]
[329622581,1718514642496,-500.0,0.00021917,2]
[329622582,1718514642512,-500.0,0.00021917,2]
[329622583,1718514642526,-500.0,0.00021917,2]
[329622584,1718514642537,-500.0,0.00021917,2]
[329622585,1718514642554,-500.0,0.00021917,2]
[329622586,1718514642566,-500.0,0.00021917,2]
[329622587,1718514642576,-500.0,0.00021917,2]
[329622588,1718514642586,-500.0,0.00021917,2]
[329622589,1718514642605,-1146.72,0.00021917,2]
[329622590,1718514642615,-500.0,0.00021917,2]
[329622591,1718514642627,-611.71,0.00021917,2]
[329622592,1718514642638,-500.0,0.00021917,2]
[329622593,1718514642650,-500.0,0.00021917,2]
[329622594,1718514642663,-500.0,0.00021917,2]
[329622595,1718514642693,-500.0,0.00021917,2]
[329622596,1718514642705,-500.0,0.00021917,2]
[329622597,1718514642737,-500.0,0.00021917,2]
[329622598,1718514642762,-250.77624811,0.00021917,2]
[329622599,1718514642774,-500.0,0.00021917,2]
[329622600,1718514642784,-500.0,0.00021917,2]
[329622601,1718514642800,-524.55190111,0.00021917,2]
[329622602,1718514642811,-500.0,0.00021917,2]
[329622603,1718514642837,-500.0,0.00021917,2]
[329622604,1718514642860,-500.0,0.00021917,2]
[329622605,1718514642871,-500.0,0.00021917,2]
[329622606,1718514642884,-500.0,0.00021917,2]
[329622607,1718514642896,-500.0,0.00021917,2]
[329622608,1718514642907,-500.0,0.00021917,2]
[329622609,1718514642923,-500.0,0.00021917,2]
[329622610,1718514642944,-898.73,0.00021917,2]
[329622611,1718514642973,-500.0,0.00021917,2]
[329622612,1718514642986,-500.0,0.00021917,2]
[329622613,1718514643016,-607.26,0.00021917,2]
[329622615,1718514643056,-500.0,0.00021917,2]
[329622616,1718514643083,-500.0,0.00021917,2]
[329622617,1718514643106,-778.55,0.00021917,2]
[329622618,1718514643138,-500.0,0.00021917,2]
[329622619,1718514643164,-500.0,0.00021917,2]
[329622620,1718514643174,-269.48103865,0.00021917,2]
[329622621,1718514643186,-500.0,0.00021917,2]
[329622622,1718514643224,-500.0,0.00021917,2]
[329622623,1718514643248,-510.7,0.00021917,2]
[329622624,1718514643292,-500.0,0.00021917,2]
[329622625,1718514643340,-738.65,0.00021917,2]
[329622626,1718514643374,-500.0,0.00021917,2]
[329622627,1718514643387,-595.17,0.00021917,2]
[329622628,1718514643409,-433.14429738,0.00021917,2]
[329622629,1718514643423,-500.0,0.00021917,2]
[329622630,1718514643452,-500.0,0.00021917,2]
[329622631,1718514643464,-698.26,0.00021917,2]
[329622632,1718514643475,-500.0,0.00021917,2]
[329622633,1718514643502,-500.0,0.00021917,2]
[329622634,1718514643539,-500.0,0.00021917,2]
[329622635,1718514643554,-500.0,0.00021917,2]
[329622636,1718514643594,-500.60765054,0.00021917,2]
[329622637,1718514643605,-500.0,0.00021917,2]
[329622638,1718514643616,-500.0,0.00021917,2]
[329622639,1718514643627,-500.0,0.00021917,2]
[329622640,1718514643661,-510.66521413,0.00021917,2]
[329622641,1718514643714,-500.0,0.00021917,2]
[329622642,1718514643732,-500.0,0.00021917,2]
[329622643,1718514643751,-522.21800658,0.00021917,2]
[329622644,1718514643765,-500.0,0.00021917,2]
[329622645,1718514643801,-500.0,0.00021917,2]
[329622646,1718514643846,-500.0,0.00021917,2]
[329622647,1718514643865,-500.0,0.00021917,2]
[329622648,1718514643888,-500.0,0.00021917,2]
[329622649,1718514643901,-500.0,0.00021917,2]
[329622650,1718514643914,-500.0,0.00021917,2]
[329622651,1718514643941,-500.0,0.00021917,2]
[329622652,1718514643952,-742.17,0.00021917,2]
[329622653,1718514643965,-832.09,0.00021917,2]
[329622654,1718514644025,-500.0,0.00021917,2]
[329622655,1718514644057,-500.0,0.00021917,2]
[329622656,1718514644086,-500.0,0.00021917,2]
[329622657,1718514644136,-500.0,0.00021917,2]
[329622658,1718514644147,-500.0,0.00021917,2]
[329622659,1718514644174,-500.0,0.00021917,2]
[329622660,1718514644201,-500.0,0.00021917,2]
[329622661,1718514644214,-500.0,0.00021917,2]
[329622662,1718514644251,-636.73577604,0.00021917,2]
[329622667,1718514646670,-32.75422396,0.00021917,2]
[329622668,1718514646692,-500.0,0.00021917,2]
[329622670,1718514646705,-500.0,0.00021917,2]
[329622672,1718514646732,-238.14193941,0.00021917,2]
[329622677,1718514648266,-261.85806059,0.00021917,2]
[329622678,1718514648282,-500.0,0.00021917,2]
[329622679,1718514648316,-847.82,0.00021917,2]
[329622680,1718514648338,-984.98,0.00021917,2]
[329622681,1718514648354,-495.49584085,0.00021917,2]
[329622722,1718514651357,-4.50415915,0.00021917,2]
[329622724,1718514651377,-299.83319288,0.00021917,2]
[329622728,1718514651440,-200.16680712,0.00021917,2]
[329622730,1718514651456,-500.0,0.00021917,2]
[329622732,1718514651485,-420.67183074,0.00021917,2]
[329622735,1718514651592,-79.32816926,0.00021917,2]
[329622736,1718514651611,-500.0,0.00021917,2]
[329622737,1718514651624,-500.0,0.00021917,2]
[329622738,1718514651639,-164.00411136,0.00021917,2]
[329622739,1718514651655,-470.77753666,0.00021917,2]
[329622741,1718514651688,-29.22246334,0.00021917,2]
[329622742,1718514651708,-500.0,0.00021917,2]
[329622744,1718514651723,-500.0,0.00021917,2]
[329622746,1718514651745,-551.70764412,0.00021917,2]
[329622749,1718514651778,-100.85235588,0.00021917,2]
[329622751,1718514651803,-264.55237755,0.00021917,2]
[329622753,1718514651823,-235.44762245,0.00021917,2]
[329622755,1718514651854,-537.54736895,0.00021917,2]
[329622757,1718514651878,-500.0,0.00021917,2]
[329622759,1718514651893,-390.5052086,0.00021917,2]
[329622770,1718514652032,-109.4947914,0.00021917,2]
[329622772,1718514652045,-500.0,0.00021917,2]
[329622774,1718514652058,-120.57661093,0.00021917,2]
[329622776,1718514652079,-379.42338907,0.00021917,2]
[329622778,1718514652092,-273.20190631,0.00021917,2]
[329622814,1718514652756,-226.79809369,0.00021917,2]
[329622815,1718514652771,-500.0,0.00021917,2]
[329622817,1718514652789,-21.6597791,0.00021917,2]
[329622821,1718514652856,-478.3402209,0.00021917,2]
[329622823,1718514652870,-843.09,0.00021917,2]
[329622824,1718514652898,-500.0,0.00021917,2]
[329622826,1718514652922,-535.33,0.00021917,2]
[329622829,1718514652948,-173.02210185,0.00021917,2]
[329622840,1718514653177,-478.70000222,0.00021917,2]
[329622845,1718514653217,-549.61789593,0.00021917,2]
[329622847,1718514653236,-500.0,0.00021917,2]
[329622848,1718514653249,-500.0,0.00021917,2]
[329622849,1718514653263,-500.0,0.00021917,2]
[329622850,1718514653297,-500.0,0.00021917,2]
[329622851,1718514653310,-909.26,0.00021917,2]
[329622852,1718514653327,-199.10782768,0.00021917,2]
[329622853,1718514653352,-500.0,0.00021917,2]